fUST/lending_fUST_20260501
["ID","MTS","AMOUNT","RATE_DAILY","PERIOD"]
[421407327,1777575032000,-1028.6329541,0.00014092,2]
[421407322,1777575032000,-995.45124592,0.00014092,2]
[421407320,1777575032000,-995.45124592,0.00014092,2]
[421407326,1777575032000,-1028.6329541,0.00014092,2]
[421407321,1777575032000,-995.45124592,0.00014092,2]
[421407329,1777575032000,-1028.6329541,0.00014092,2]
[421407331,1777575032000,-1028.6329541,0.00014092,2]
[421407330,1777575032000,-1028.6329541,0.00014092,2]
[421407332,1777575032000,-147361.25416517,0.00014093,2]
[421407333,1777575032000,-2236.71123397,0.00014093,2]
[421407324,1777575032000,-1028.6329541,0.00014092,2]
[421407318,1777575032000,-995.45124592,0.00014092,2]
[421407319,1777575032000,-995.45124592,0.00014092,2]
[421407317,1777575032000,-995.45124592,0.00014092,2]
[421407296,1777575032000,-500.0,0.00014091,2]
[421407298,1777575032000,-500.0,0.00014091,2]
[421407297,1777575032000,-500.0,0.00014091,2]
[421407316,1777575032000,-995.45124592,0.00014092,2]
[421407304,1777575032000,-995.45124592,0.00014092,2]
[421407306,1777575032000,-995.45124592,0.00014092,2]
[421407310,1777575032000,-995.45124592,0.00014092,2]
[421407303,1777575032000,-995.45124592,0.00014092,2]
[421407314,1777575032000,-995.45124592,0.00014092,2]
[421407312,1777575032000,-995.45124592,0.00014092,2]
[421407311,1777575032000,-405.34221387,0.00014092,2]
[421407309,1777575032000,-995.45124592,0.00014092,2]
[421407307,1777575032000,-995.45124592,0.00014092,2]
[421407313,1777575032000,-995.45124592,0.00014092,2]
[421407305,1777575032000,-995.45124592,0.00014092,2]
[421407308,1777575032000,-995.45124592,0.00014092,2]
[421407352,1777575038000,-836.73170697,0.00014093,2]
[421407356,1777575038000,-500.0,0.00014093,2]
[421407355,1777575038000,-500.0,0.00014093,2]
[421407350,1777575038000,-31954.42952058,0.00014093,2]
[421407354,1777575038000,-500.0,0.00014093,2]
[421407353,1777575038000,-280510.61271767,0.00014093,2]
[421407349,1777575038000,-4991.96987597,0.00014093,2]
[421407351,1777575038000,-10209.98579081,0.00014093,2]
[421407357,1777575038000,-500.0,0.00014093,2]
[421407367,1777575038000,-500.0,0.00014093,2]
[421407361,1777575038000,-500.0,0.00014093,2]
[421407369,1777575038000,-621.0,0.00014093,2]
[421407359,1777575038000,-500.0,0.00014093,2]
[421407362,1777575038000,-500.0,0.00014093,2]
[421407364,1777575038000,-500.0,0.00014093,2]
[421407371,1777575038000,-41981.17777958,0.00014094,2]
[421407360,1777575038000,-500.0,0.00014093,2]
[421407365,1777575038000,-500.0,0.00014093,2]
[421407363,1777575038000,-500.0,0.00014093,2]
[421407358,1777575038000,-500.0,0.00014093,2]
[421407383,1777575040000,-287.41114439,0.00013953,2]
[421407382,1777575040000,-2357.72519592,0.00013953,2]
[421407404,1777575046000,-4506.5760291,0.00014094,2]
[421407403,1777575046000,-2354.86365969,0.00013953,2]
[421407405,1777575046000,-106484.1235937,0.00014094,2]
[421407413,1777575412000,155.30357962,0.00019968,120]
[421407485,1777576232000,-244.1891963,0.00013588,2]
[421407480,1777576232000,-455.9483532,0.00012767,2]
[421407482,1777576232000,-281.23597731,0.00013588,2]
[421407488,1777576232000,-156.0,0.00013699,2]
[421407490,1777576232000,-1000.0,0.00013699,2]
[421407492,1777576232000,-1000.0,0.00013699,2]
[421407502,1777576232000,-275.48876015,0.00013991,2]
[421407504,1777576232000,-200.54184318,0.00013992,2]
[421407494,1777576232000,-2822.00560484,0.00013891,2]
[421407496,1777576232000,-300.0,0.0001399,2]
[421407498,1777576232000,-500.0,0.00013991,2]
[421407500,1777576232000,-500.0,0.00013991,2]
[421407510,1777576232000,-537.6845,0.00013992,2]
[421407522,1777576232000,-1690.16,0.00013992,2]
[421407524,1777576232000,-13448.33566502,0.00013992,2]
[421407518,1777576232000,-500.0,0.00013992,2]
[421407514,1777576232000,-2150.738,0.00013992,2]
[421407528,1777576232000,-92279.65827077,0.00013992,2]
[421407516,1777576232000,-677.82,0.00013992,2]
[421407520,1777576232000,-500.0,0.00013992,2]
[421407626,1777576238000,-677.82,0.00013993,2]
[421407628,1777576238000,-677.82,0.00013993,2]
[421407617,1777576238000,-677.82,0.00013993,2]
[421407622,1777576238000,-677.82,0.00013993,2]
[421407620,1777576238000,-677.82,0.00013993,2]
[421407624,1777576238000,-677.82,0.00013993,2]
[421407602,1777576238000,-26105.75667421,0.00013993,2]
[421407619,1777576238000,-677.82,0.00013993,2]
[421407613,1777576238000,-4062.29922733,0.00013993,2]
[421407601,1777576238000,-281.23597731,0.00013992,2]
[421407630,1777576238000,-677.82,0.00013993,2]
[421407597,1777576238000,-2379.9749059,0.00013992,2]
[421407595,1777576238000,-620.0,0.00013992,2]
[421407615,1777576238000,-70932.72758046,0.00013993,2]
[421407631,1777576238000,-677.82,0.00013993,2]
[421407599,1777576238000,-1075.0532526,0.00013992,2]
[421407632,1777576238000,-677.82,0.00013993,2]
[421407636,1777576238000,-500.0,0.00013993,2]
[421407645,1777576238000,-500.0,0.00013993,2]
[421407646,1777576238000,-500.0,0.00013993,2]
[421407649,1777576238000,-263.54,0.00013993,2]
[421407643,1777576238000,-500.0,0.00013993,2]
[421407647,1777576238000,-500.0,0.00013993,2]
[421407648,1777576238000,-500.0,0.00013993,2]
[421407644,1777576238000,-500.0,0.00013993,2]
[421407641,1777576238000,-500.0,0.00013993,2]
[421407640,1777576238000,-500.0,0.00013993,2]
[421407642,1777576238000,-500.0,0.00013993,2]
[421407638,1777576238000,-500.0,0.00013993,2]
[421407637,1777576238000,-500.0,0.00013993,2]
[421407639,1777576238000,-500.0,0.00013993,2]
[421407634,1777576238000,-500.0,0.00013993,2]
[421407698,1777576239000,-605.93,0.00014092,2]
[421407699,1777576239000,-605.93,0.00014092,2]
[421407695,1777576239000,-605.93,0.00014092,2]
[421407691,1777576239000,-605.93,0.00014092,2]
[421407688,1777576239000,-500.0,0.00014091,2]
[421407686,1777576239000,-500.0,0.00014091,2]
[421407685,1777576239000,-500.0,0.00014091,2]
[421407683,1777576239000,-605.93,0.00014091,2]
[421407682,1777576239000,-300.89714103,0.00014085,2]
[421407696,1777576239000,-605.93,0.00014092,2]
[421407684,1777576239000,-605.93,0.00014091,2]
[421407687,1777576239000,-1690.16,0.00014091,2]
[421407693,1777576239000,-605.93,0.00014092,2]
[421407702,1777576239000,-605.93,0.00014092,2]
[421407690,1777576239000,-605.93,0.00014092,2]
[421407692,1777576239000,-605.93,0.00014092,2]
[421407689,1777576239000,-605.93,0.00014092,2]
[421407700,1777576239000,-605.93,0.00014092,2]
[421407697,1777576239000,-605.93,0.00014092,2]
[421407681,1777576239000,-151.0,0.00014085,2]
[421407712,1777576239000,-500.0,0.00014092,2]
[421407713,1777576239000,-500.0,0.00014092,2]
[421407701,1777576239000,-605.93,0.00014092,2]
[421407708,1777576239000,-605.93,0.00014092,2]
[421407707,1777576239000,-605.93,0.00014092,2]
[421407703,1777576239000,-605.93,0.00014092,2]
[421407711,1777576239000,-500.0,0.00014092,2]
[421407694,1777576239000,-605.93,0.00014092,2]
[421407680,1777576239000,-151.0,0.00014085,2]
[421407675,1777576239000,-151.0,0.00014085,2]
[421407677,1777576239000,-151.0,0.00014085,2]
[421407705,1777576239000,-605.93,0.00014092,2]
[421407651,1777576239000,-1690.16,0.00013993,2]
[421407661,1777576239000,-498.08040277,0.00013999,2]
[421407659,1777576239000,-1690.16,0.00013993,2]
[421407660,1777576239000,-677.82,0.00013999,2]
[421407650,1777576239000,-1690.16,0.00013993,2]
[421407654,1777576239000,-1690.16,0.00013993,2]
[421407652,1777576239000,-1690.16,0.00013993,2]
[421407653,1777576239000,-1690.16,0.00013993,2]
[421407662,1777576239000,-1690.16,0.00013999,2]
[421407656,1777576239000,-1690.16,0.00013993,2]
[421407655,1777576239000,-1690.16,0.00013993,2]
[421407657,1777576239000,-1690.16,0.00013993,2]
[421407679,1777576239000,-151.0,0.00014085,2]
[421407658,1777576239000,-1690.16,0.00013993,2]
[421407667,1777576239000,-11647.0352735,0.00014073,2]
[421407664,1777576239000,-10598.73431035,0.00014,2]
[421407666,1777576239000,-1243.3402491,0.00014073,2]
[421407665,1777576239000,-557.5788265,0.00014047,2]
[421407674,1777576239000,-151.0,0.00014085,2]
[421407673,1777576239000,-151.0,0.00014085,2]
[421407668,1777576239000,-461.67526834,0.00014085,2]
[421407669,1777576239000,-232.34705367,0.00014085,2]
[421407672,1777576239000,-151.0,0.00014085,2]
[421407670,1777576239000,-537.6845,0.00014085,2]
[421407671,1777576239000,-206.99369548,0.00014085,2]
[421407676,1777576239000,-151.0,0.00014085,2]
[421407678,1777576239000,-151.0,0.00014085,2]
[421407663,1777576239000,-500.0,0.00013999,2]
[421407704,1777576239000,-605.93,0.00014092,2]
[421407716,1777576239000,-677.82,0.00014092,2]
[421407709,1777576239000,-605.93,0.00014092,2]
[421407745,1777576239000,-649.0,0.00014094,2]
[421407746,1777576239000,-649.0,0.00014094,2]
[421407749,1777576239000,-649.0,0.00014094,2]
[421407748,1777576239000,-649.0,0.00014094,2]
[421407750,1777576239000,-649.0,0.00014094,2]
[421407760,1777576239000,-1000.0,0.00014152,2]
[421407751,1777576239000,-197.39783372,0.00014094,2]
[421407754,1777576239000,-152.0,0.00014117,7]
[421407758,1777576239000,-667.42656494,0.00014152,2]
[421407757,1777576239000,-1000.0,0.00014152,2]
[421407752,1777576239000,-578.20924308,0.00014102,2]
[421407761,1777576239000,-1000.0,0.00014152,2]
[421407755,1777576239000,-500.0,0.00014151,2]
[421407747,1777576239000,-649.0,0.00014094,2]
[421407753,1777576239000,-152.0,0.00014117,7]
[421407759,1777576239000,-1000.0,0.00014152,2]
[421407763,1777576239000,-1007.86644948,0.00014152,2]
[421407773,1777576239000,-677.82,0.00014192,2]
[421407768,1777576239000,-151.0,0.00014152,2]
[421407765,1777576239000,-151.0,0.00014152,2]
[421407762,1777576239000,-1000.0,0.00014152,2]
[421407764,1777576239000,-180.86903507,0.00014152,2]
[421407766,1777576239000,-151.0,0.00014152,2]
[421407767,1777576239000,-151.0,0.00014152,2]
[421407769,1777576239000,-151.0,0.00014152,2]
[421407772,1777576239000,-599.60298507,0.00014157,2]
[421407706,1777576239000,-605.93,0.00014092,2]
[421407771,1777576239000,-154.93465397,0.00014152,2]
[421407756,1777576239000,-1000.0,0.00014152,2]
[421407744,1777576239000,-649.0,0.00014094,2]
[421407770,1777576239000,-151.0,0.00014152,2]
[421407742,1777576239000,-649.0,0.00014094,2]
[421407743,1777576239000,-649.0,0.00014094,2]
[421407710,1777576239000,-606.11375248,0.00014092,2]
[421407724,1777576239000,-341.0,0.00014094,2]
[421407725,1777576239000,-341.0,0.00014094,2]
[421407717,1777576239000,-677.82,0.00014092,2]
[421407715,1777576239000,-501.53869568,0.00014092,2]
[421407719,1777576239000,-500.0,0.00014092,2]
[421407718,1777576239000,-1690.16,0.00014092,2]
[421407722,1777576239000,-341.0,0.00014094,2]
[421407726,1777576239000,-341.0,0.00014094,2]
[421407723,1777576239000,-341.0,0.00014094,2]
[421407720,1777576239000,-500.0,0.00014093,2]
[421407721,1777576239000,-500.0,0.00014093,2]
[421407728,1777576239000,-649.0,0.00014094,2]
[421407714,1777576239000,-500.0,0.00014092,2]
[421407738,1777576239000,-166.0,0.00014094,2]
[421407741,1777576239000,-649.0,0.00014094,2]
[421407740,1777576239000,-200.0,0.00014094,2]
[421407739,1777576239000,-288.05973587,0.00014094,2]
[421407732,1777576239000,-154.0,0.00014094,2]
[421407737,1777576239000,-154.0,0.00014094,2]
[421407735,1777576239000,-166.0,0.00014094,2]
[421407734,1777576239000,-154.0,0.00014094,2]
[421407733,1777576239000,-154.0,0.00014094,2]
[421407731,1777576239000,-154.0,0.00014094,2]
[421407729,1777576239000,-164.0,0.00014094,2]
[421407727,1777576239000,-649.0,0.00014094,2]
[421407736,1777576239000,-341.0,0.00014094,2]
[421407730,1777576239000,-193.01611905,0.00014094,2]
[421407824,1777576240000,-300.0,0.00014888,2]
[421407816,1777576240000,-894.19061326,0.00014762,2]
[421407815,1777576240000,-862.28603014,0.00014707,2]
[421407808,1777576240000,-773.2413689,0.00014542,2]
[421407804,1777576240000,-693.3919763,0.00014377,2]
[421407813,1777576240000,-151.0,0.000147,2]
[421407807,1777576240000,-2230.315306,0.0001454,2]
[421407810,1777576240000,-801.85129955,0.00014597,2]
[421407811,1777576240000,-477.26543042,0.00014633,2]
[421407809,1777576240000,-500.0,0.00014572,2]
[421407805,1777576240000,-719.04747942,0.00014432,2]
[421407819,1777576240000,-500.0,0.00014835,2]
[421407821,1777576240000,-300.0,0.00014888,2]
[421407817,1777576240000,-927.27566595,0.00014817,2]
[421407818,1777576240000,-2822.00560481,0.00014828,2]
[421407823,1777576240000,-300.0,0.00014888,2]
[421407825,1777576240000,-300.0,0.00014888,2]
[421407820,1777576240000,-961.58486559,0.00014872,2]
[421407822,1777576240000,-300.0,0.00014888,2]
[421407835,1777576240000,-300.0,0.00014888,2]
[421407826,1777576240000,-300.0,0.00014888,2]
[421407836,1777576240000,-600.0,0.0001489,2]
[421407834,1777576240000,-300.0,0.00014888,2]
[421407833,1777576240000,-300.0,0.00014888,2]
[421407806,1777576240000,-745.65223616,0.00014487,2]
[421407837,1777576240000,-997.16350561,0.00014927,2]
[421407814,1777576240000,-151.0,0.000147,2]
[421407803,1777576240000,-668.65185757,0.00014322,2]
[421407789,1777576240000,-500.0,0.00014282,2]
[421407802,1777576240000,-151.0,0.000143,2]
[421407827,1777576240000,-300.0,0.00014888,2]
[421407774,1777576240000,-1690.16,0.00014192,2]
[421407776,1777576240000,-621.78829552,0.00014212,2]
[421407775,1777576240000,-151.0,0.000142,2]
[421407781,1777576240000,-677.82,0.00014282,2]
[421407777,1777576240000,-644.79446246,0.00014267,2]
[421407778,1777576240000,-1690.16,0.00014281,2]
[421407782,1777576240000,-677.82,0.00014282,2]
[421407787,1777576240000,-500.0,0.00014282,2]
[421407786,1777576240000,-500.0,0.00014282,2]
[421407779,1777576240000,-677.82,0.00014282,2]
[421407783,1777576240000,-1690.16,0.00014282,2]
[421407780,1777576240000,-677.82,0.00014282,2]
[421407801,1777576240000,-1690.26975119,0.00014294,2]
[421407785,1777576240000,-1690.16,0.00014282,2]
[421407790,1777576240000,-52918.2811286,0.00014283,2]
[421407788,1777576240000,-500.0,0.00014282,2]
[421407794,1777576240000,-677.82,0.00014294,2]
[421407792,1777576240000,-677.82,0.00014294,2]
[421407799,1777576240000,-1690.16,0.00014294,2]
[421407796,1777576240000,-184.92843159,0.00014294,2]
[421407800,1777576240000,-1690.16,0.00014294,2]
[421407795,1777576240000,-677.90460262,0.00014294,2]
[421407791,1777576240000,-677.82,0.00014294,2]
[421407798,1777576240000,-1690.16,0.00014294,2]
[421407793,1777576240000,-677.82,0.00014294,2]
[421407797,1777576240000,-1690.16,0.00014294,2]
[421407812,1777576240000,-831.51979763,0.00014652,2]
[421407784,1777576240000,-1690.16,0.00014282,2]
[421407831,1777576240000,-300.0,0.00014888,2]
[421407830,1777576240000,-300.0,0.00014888,2]
[421407828,1777576240000,-300.0,0.00014888,2]
[421407883,1777576240000,-3000.0,0.0001605,2]
[421407879,1777576240000,-3000.0,0.0001601,2]
[421407882,1777576240000,-3000.0,0.0001604,2]
[421407884,1777576240000,-3000.0,0.0001606,2]
[421407880,1777576240000,-3000.0,0.0001602,2]
[421407881,1777576240000,-3000.0,0.0001603,2]
[421407886,1777576240000,-151.0,0.0001606,2]
[421407895,1777576240000,-151.0,0.000161,2]
[421407894,1777576240000,-151.0,0.000161,2]
[421407896,1777576240000,-151.0,0.000161,2]
[421407887,1777576240000,-151.0,0.0001606,2]
[421407885,1777576240000,-151.0,0.0001606,2]
[421407888,1777576240000,-151.0,0.0001606,2]
[421407890,1777576240000,-3000.0,0.0001608,2]
[421407889,1777576240000,-3000.0,0.0001607,2]
[421407892,1777576240000,-278489.21672114,0.000161,2]
[421407891,1777576240000,-3000.0,0.0001609,2]
[421407893,1777576240000,-3000.0,0.000161,2]
[421407898,1777576240000,-151.0,0.000161,2]
[421407899,1777576240000,-151.0,0.000161,2]
[421407897,1777576240000,-176.097836,0.000161,2]
[421407903,1777576240000,-3000.0,0.0001614,2]
[421407904,1777576240000,-3000.0,0.0001615,2]
[421407901,1777576240000,-3000.0,0.0001612,2]
[421407902,1777576240000,-3000.0,0.0001613,2]
[421407905,1777576240000,-3000.0,0.0001616,2]
[421407829,1777576240000,-300.0,0.00014888,2]
[421407874,1777576240000,-331.85845322,0.00015992,2]
[421407878,1777576240000,-151.0,0.00016,2]
[421407900,1777576240000,-3000.0,0.0001611,2]
[421407876,1777576240000,-19258.05722924,0.00016,2]
[421407875,1777576240000,-218.50207904,0.00016,2]
[421407840,1777576240000,-2312.83697232,0.00015088,2]
[421407841,1777576240000,-151.0,0.000151,2]
[421407838,1777576240000,-400.0,0.00015,2]
[421407842,1777576240000,-373.36834502,0.00015191,2]
[421407839,1777576240000,-193.0,0.00015,7]
[421407846,1777576240000,-154.0,0.00015246,2]
[421407845,1777576240000,-649.0,0.00015246,2]
[421407850,1777576240000,-172.0,0.000153,2]
[421407844,1777576240000,-151.0,0.000152,2]
[421407847,1777576240000,-649.0,0.00015246,2]
[421407848,1777576240000,-373.23808,0.000153,2]
[421407852,1777576240000,-166.0,0.000153,2]
[421407832,1777576240000,-300.0,0.00014888,2]
[421407856,1777576240000,-649.0,0.000153,2]
[421407855,1777576240000,-200.0,0.000153,2]
[421407877,1777576240000,-3000.0,0.00016,2]
[421407873,1777576240000,-217.291214,0.00015778,2]
[421407865,1777576240000,-791.0,0.000155,2]
[421407866,1777576240000,-1000.0,0.00015599,3]
[421407872,1777576240000,-450.981761,0.00015778,2]
[421407870,1777576240000,-2398.4119403,0.00015636,2]
[421407861,1777576240000,-156.587,0.00015454,2]
[421407863,1777576240000,-151.0,0.000155,2]
[421407869,1777576240000,-151.0,0.000156,2]
[421407859,1777576240000,-420.0,0.00015327,2]
[421407871,1777576240000,-2822.00560481,0.00015764,2]
[421407868,1777576240000,-349.91945908,0.00015599,2]
[421407941,1777576241000,-151.0,0.000166,2]
[421407957,1777576241000,-1979.47839,0.00017,2]
[421407943,1777576241000,-1410.0,0.00016609,2]
[421407942,1777576241000,-646.0,0.00016609,2]
[421407938,1777576241000,-151.0,0.00016438,2]
[421407944,1777576241000,-442.0,0.00016609,2]
[421407939,1777576241000,-307.487564,0.00016567,2]
[421407936,1777576241000,-151.0,0.00016438,2]
[421407937,1777576241000,-151.0,0.00016438,2]
[421407947,1777576241000,-151.0,0.000167,2]
[421407940,1777576241000,-181.17852391,0.00016577,2]
[421407958,1777576241000,-456.0406255,0.00017008,2]
[421407949,1777576241000,-4000.0,0.00016712,2]
[421407948,1777576241000,-2822.00560481,0.00016701,2]
[421407954,1777576241000,-185.80901213,0.00016823,2]
[421407955,1777576241000,-368.0,0.00016972,2]
[421407950,1777576241000,-1000.0,0.00016712,2]
[421407951,1777576241000,-2579.17784983,0.00016732,2]
[421407952,1777576241000,-463.0,0.00016792,2]
[421407953,1777576241000,-151.0,0.000168,2]
[421407956,1777576241000,-500.35098466,0.00017,2]
[421407970,1777576241000,-151.0,0.000176,2]
[421407960,1777576241000,-151.0,0.000171,2]
[421407971,1777576241000,-151.0,0.000176,2]
[421407934,1777576241000,-166.836227,0.00016438,2]
[421407946,1777576241000,-185.0,0.00016609,2]
[421407935,1777576241000,-151.0,0.00016438,2]
[421407919,1777576241000,-151.0,0.00016438,2]
[421407933,1777576241000,-166.836227,0.00016438,2]
[421407962,1777576241000,-455.2507566,0.00017144,2]
[421407908,1777576241000,-2487.15318209,0.00016184,2]
[421407907,1777576241000,-3000.0,0.0001618,2]
[421407906,1777576241000,-3000.0,0.0001617,2]
[421407910,1777576241000,-3000.0,0.0001619,2]
[421407913,1777576241000,-250.0,0.00016367,2]
[421407921,1777576241000,-151.0,0.00016438,2]
[421407920,1777576241000,-177.291819,0.00016438,2]
[421407911,1777576241000,-3557.733636,0.000162,2]
[421407912,1777576241000,-151.0,0.000163,2]
[421407909,1777576241000,-151.0,0.00016186,2]
[421407915,1777576241000,-151.0,0.000164,2]
[421407914,1777576241000,-720.0,0.00016379,2]
[421407916,1777576241000,-1018.42975718,0.00016438,2]
[421407917,1777576241000,-376.3194912,0.00016438,2]
[421407918,1777576241000,-151.0,0.00016438,2]
[421407922,1777576241000,-151.0,0.00016438,2]
[421407924,1777576241000,-151.0,0.00016438,2]
[421407925,1777576241000,-153.870082,0.00016438,2]
[421407931,1777576241000,-166.836227,0.00016438,2]
[421407932,1777576241000,-166.836227,0.00016438,2]
[421407927,1777576241000,-166.836227,0.00016438,2]
[421407926,1777576241000,-152.672042,0.00016438,2]
[421407930,1777576241000,-166.836227,0.00016438,2]
[421407928,1777576241000,-166.836227,0.00016438,2]
[421407923,1777576241000,-151.0,0.00016438,2]
[421407929,1777576241000,-166.836227,0.00016438,2]
[421407945,1777576241000,-602.108,0.00016609,2]
[421407965,1777576241000,-1243.3402491,0.00017413,2]
[421407959,1777576241000,-454.4481216,0.00017008,2]
[421407968,1777576241000,-160.0,0.00017566,2]
[421407999,1777576241000,-355.43924412,0.00018,2]
[421408001,1777576241000,-206.61670469,0.00018,2]
[421408000,1777576241000,-179.87392412,0.00018,2]
[421408003,1777576241000,-168.97433203,0.00018,2]
[421408002,1777576241000,-448.21894705,0.00018,2]
[421408007,1777576241000,-251.95417932,0.00018,2]
[421408006,1777576241000,-198.80859224,0.00018,2]
[421407998,1777576241000,-3636.24285557,0.00018,2]
[421408005,1777576241000,-844.9303583,0.00018,2]
[421408004,1777576241000,-294.72910767,0.00018,2]
[421408009,1777576241000,-151.0,0.00018,2]
[421408008,1777576241000,-4246.02874838,0.00018,2]
[421408011,1777576241000,-151.0,0.00018,2]
[421408016,1777576241000,-151.0,0.00018,2]
[421408019,1777576241000,-166.836227,0.00018,2]
[421408013,1777576241000,-151.28496,0.00018,2]
[421408010,1777576241000,-151.0,0.00018,2]
[421408015,1777576241000,-1000.0,0.00018,2]
[421408014,1777576241000,-151.0,0.00018,2]
[421408017,1777576241000,-151.0,0.00018,2]
[421408012,1777576241000,-154.637272,0.00018,2]
[421408020,1777576241000,-166.836227,0.00018,2]
[421408018,1777576241000,-166.836227,0.00018,2]
[421408022,1777576241000,-294.646662,0.00018,2]
[421408023,1777576241000,-151.0,0.00018,2]
[421408024,1777576241000,-151.0,0.00018,2]
[421407964,1777576241000,-2674.60743027,0.0001728,2]
[421407997,1777576241000,-775.70128674,0.00018,2]
[421407993,1777576241000,-510.47722613,0.00018,2]
[421408021,1777576241000,-166.836227,0.00018,2]
[421407994,1777576241000,-8052.2509638,0.00018,3]
[421407961,1777576241000,-151.0,0.000171,2]
[421407992,1777576241000,-6630.5887407,0.00018,2]
[421407966,1777576241000,-1000.0,0.000175,2]
[421407963,1777576241000,-151.0,0.000172,2]
[421407969,1777576241000,-151.0,0.000176,2]
[421407967,1777576241000,-160.0,0.00017566,2]
[421407975,1777576241000,-456.0406256,0.00017758,2]
[421407976,1777576241000,-456.0406255,0.00017758,2]
[421407980,1777576241000,-3636.24285557,0.000178,2]
[421407978,1777576241000,-151.0,0.00017758,2]
[421407982,1777576241000,-645.6,0.00017817,2]
[421407973,1777576241000,-775.70128674,0.000177,2]
[421407974,1777576241000,-3636.24285557,0.000177,2]
[421407977,1777576241000,-325.548554,0.00017758,2]
[421407972,1777576241000,-2822.00560481,0.00017637,2]
[421407981,1777576241000,-151.0,0.000178,2]
[421407990,1777576241000,-382.48092914,0.00017992,2]
[421407989,1777576241000,-29839.01190877,0.000179,2]
[421407986,1777576241000,-456.2478,0.000179,2]
[421407987,1777576241000,-563.822,0.000179,2]
[421407988,1777576241000,-151.0,0.000179,2]
[421407984,1777576241000,-2773.56790519,0.00017828,2]
[421407991,1777576241000,-1966.13610821,0.00018,5]
[421407996,1777576241000,-163.0737002,0.00018,2]
[421407985,1777576241000,-325.4075435,0.00017876,2]
[421407979,1777576241000,-775.70128674,0.000178,2]
[421407983,1777576241000,-165.55598906,0.00017818,2]
[421407995,1777576241000,-72428.17953259,0.00018,2]
[421408071,1777576242000,-166.836227,0.00018479,2]
[421408081,1777576242000,-844.9303583,0.000185,2]
[421408063,1777576242000,-151.0,0.00018479,2]
[421408065,1777576242000,-151.0,0.00018479,2]
[421408066,1777576242000,-151.0,0.00018479,2]
[421408069,1777576242000,-166.836227,0.00018479,2]
[421408061,1777576242000,-328.41019421,0.0001847,2]
[421408064,1777576242000,-151.0,0.00018479,2]
[421408060,1777576242000,-165.55598906,0.00018461,14]
[421408068,1777576242000,-166.836227,0.00018479,2]
[421408058,1777576242000,-155.30357962,0.00018417,2]
[421408059,1777576242000,-1003.32580786,0.00018456,2]
[421408067,1777576242000,-151.0,0.00018479,2]
[421408072,1777576242000,-151.0,0.00018479,2]
[421408084,1777576242000,-151.0,0.000185,2]
[421408073,1777576242000,-151.0,0.00018479,2]
[421408070,1777576242000,-166.836227,0.00018479,2]
[421408077,1777576242000,-206.61670469,0.000185,2]
[421408075,1777576242000,-355.43924412,0.000185,2]
[421408076,1777576242000,-179.87392412,0.000185,2]
[421408074,1777576242000,-822.0,0.00018482,2]
[421408078,1777576242000,-448.21894705,0.000185,2]
[421408080,1777576242000,-294.72910767,0.000185,2]
[421408079,1777576242000,-168.97433203,0.000185,2]
[421408086,1777576242000,-200.0,0.0001851,2]
[421408083,1777576242000,-4246.02874838,0.000185,2]
[421408085,1777576242000,-1000.0,0.000185,2]
[421408087,1777576242000,-2822.00560481,0.00018574,2]